Cogmind - Beta 14 @@@ ROGUE MODE // 2025.01.09 @ 12:47:19 Player: Doobadoop Result: Destroyed by C-17 Slicer with Blade Saw Performance ------------- Evolutions (2) 1000 Regions Visited (4) 800 Robots Destroyed (26) 130 Value Destroyed (636) 636 Prototype IDs (0) 0 Alien Tech Used (0) 0 Bonus (0) 0 TOTAL SCORE: 2566 Bonus ------- None Cogmind --------- Core Integrity 0/550 Matter 200/300 Energy 18/100 System Corruption 0% Temperature Cool (0) Movement Core (100) Ox1 Location -8/Materials Parts ------- > --- POWER (2) -------- (None) > --- PROPULSION (3) --- (None) > --- UTILITY (4) ------ System Shield > --- WEAPON (2) ------- Improved Grenade Launcher > --- INVENTORY (5) ---- Surge Thruster Advanced Weight Redist. System Peak State ------------ > --- POWER ------------ Light Ion Engine > --- PROPULSION ------- Flight Unit Flight Unit Flight Unit > --- UTILITY ---------- Visual Processing Unit Targeting Computer Improved Targeting Computer System Shield > --- WEAPON ----------- Field Laser Improved Grenade Launcher > --- INVENTORY -------- Assault Cannon Assault Cannon EMP Blaster Improved Datajack Heavy Mace [Rating: 19] Favorites ----------- Power Light Ion Engine Engine Light Ion Engine Propulsion Flight Unit Leg Aluminum Leg Wheel Wheel Hover Unit Hover Unit Flight Unit Flight Unit Utility Visual Processing Unit Device Tractor Beam Storage Medium Battery Processor Visual Processing Unit Hackware System Shield Protection Light Armor Plating Weapon Assault Rifle Energy Gun Small Laser Energy Cannon Light EM Pulse Cannon Ballistic Gun Assault Rifle Ballistic Cannon Assault Cannon Launcher Improved Grenade Launcher Impact Weapon Hammer Special Melee Weapon Datajack Build | -11 -10 -10 -9 -8 ------- Run | Yrd Mat Min Mat Mat Slots Evolved 4 | . . . 2 2 Power 1 | . . . . 1 Propulsion 1 | . . . 1 . Utility 2 | . . . 1 1 Weapon . | . . . . . Parts Attached 74 | 10 19 13 14 18 Power 10 | 1 1 6 . 2 Engine 10 | 1 1 6 . 2 Core . | . . . . . Reactor . | . . . . . Propulsion 23 | 6 5 4 3 5 Treads . | . . . . . Leg 6 | 4 . 2 . . Wheel 4 | 2 2 . . . Hover 3 | . 3 . . . Flight 10 | . . 2 3 5 Utility 12 | . 6 . 2 4 Device 3 | . 1 . 1 1 Storage 3 | . 3 . . . Processor 3 | . 1 . 1 1 Hackware 1 | . . . . 1 Protection 2 | . 1 . . 1 Artifact . | . . . . . Weapon 29 | 3 7 3 9 7 Energy Gun 6 | 2 2 . 1 1 Energy Cannon 7 | . . 1 6 . Ballistic Gun 7 | 1 5 . 1 . Ballistic Cannon 1 | . . . . 1 Launcher 4 | . . . . 4 Special Weapon . | . . . . . Impact Weapon 2 | . . 1 1 . Slashing Weapon . | . . . . . Piercing Weapon . | . . . . . Special Melee Weapon 2 | . . 1 . 1 Unidentified Prototypes . | . . . . . Parts Lost 17 | . . 4 3 10 Power 1 | . . . . 1 Propulsion 10 | . . 3 1 6 Utility 2 | . . . 1 1 Weapon 4 | . . 1 1 2 Highest Loss Streak 9 | . . 2 2 9 To Critical Strikes 1 | . . 1 . . Average Slot Usage (%) 82 | . 92 91 69 74 Engine 8 | . 14 12 . 3 Leg 3 | . 3 8 . . Wheel 1 | . 6 . . . Hover 9 | . 18 12 . . Flight 11 | . . 1 25 24 Storage 10 | . 13 14 10 . Processor 13 | . 1 14 17 25 Protection 1 | . 3 . . . Energy Gun 4 | . 10 . . 5 Energy Cannon 6 | . . 7 12 1 Ballistic Gun 6 | . 17 5 1 . Impact Weapon 3 | . . 11 . . Peak Build Rating 19 | 5 8 14 11 19 Average Rating 8 | 2 6 9 8 15 On Entrance 5 | . 5 8 5 8 Naked Turns . | . . . . . Heaviest Build 16 | 6 14 16 10 12 Greatest Support 25 | 20 20 25 12 12 Greatest Overweight (x) 5 | . 1 5 3 . Average Overweight (x) . | . . . . . Largest Inventory Capacity 25 | 5 25 5 5 5 Average Capacity 5 | 5 5 5 5 5 Most Carried 5 | 5 5 5 5 5 Average Carried 3 | 2 3 3 2 4 Final Capacity 5 | 5 5 5 5 5 Final Carried 4 | 3 4 3 2 2 Class Distribution -------------------- 63% | Mutant 36% | Scavenger-Mutant Dominant Class ---------------- Mutant | -10/Materials Mutant | -10/Mines Scavenger-Mutant | -9/Materials Scavenger-Mutant | -8/Materials Resources | -11 -10 -10 -9 -8 ----------- Run | Yrd Mat Min Mat Mat Matter Collected 942 | 300 161 241 108 132 Remotely . | . . . . . Salvage Created 657 | 41 183 148 108 177 Parts 47 | . 12 7 8 20 Haulers Intercepted . | . . . . . Recyclers Shooed . | . . . . . Parts Field Recycled . | . . . . . Retrieved Matter . | . . . . . Parts Self-Destructed . | . . . . . Prevented . | . . . . . Kills | -11 -10 -10 -9 -8 ------- Run | Yrd Mat Min Mat Mat Combat Hostiles Destroyed 22 | 1 4 7 5 5 Guns 7 | 1 3 . 3 . Cannons 10 | . . 6 2 2 AOE 4 | . 1 . . 3 Classes Destroyed 5 | 1 1 1 . 2 Worker 1 | . . . . 1 Operator 1 | . . . . 1 Watcher 2 | . 1 . . 1 Swarmer 12 | . . 6 4 2 Grunt 10 | 1 4 1 1 3 Best Kill Streak 4 | 1 3 3 4 4 Combat Bots Only 4 | 1 3 3 4 3 Max Kills in Single Turn 3 | 1 1 1 1 3 Gunslinging . | . . . . . Exploded 2 | . 1 . . 2 Melee . | . . . . . Uniques/NPCs Destroyed . | . . . . . Combat | -11 -10 -10 -9 -8 -------- Run | Yrd Mat Min Mat Mat Hostile Shots Fired 276 | 2 39 84 47 104 Missed 103 | . 13 24 15 51 Damage Taken 2312 | 23 380 511 306 1092 Core 905 | . 103 107 138 557 Absorbed by Shields . | . . . . . Core Remaining (%) 60 | 100 . 16 65 . Volleys Fired 82 | 2 26 30 10 14 Largest 2 | 2 2 1 2 2 Hottest 121 | 90 90 60 121 119 Shots Fired 123 | 4 52 30 17 20 Gun 70 | 4 52 . 8 6 Cannon 47 | . . 30 9 8 Launcher 6 | . . . . 6 Special . | . . . . . Kinetic 30 | . 22 . 1 7 Thermal 77 | 4 30 30 7 6 Explosive 4 | . . . . 4 Electromagnetic 12 | . . . 9 3 Robot Hit Streak 8 | 2 7 2 8 8 Robot Miss Streak 4 | 1 3 4 2 3 Penetration Max . | . . . . . Secondary Targets . | . . . . . Shots Hit Robots 76 | 2 35 17 10 12 Core Hits 41 | 2 11 7 5 16 Critical Kills . | . . . . . Critical Parts Destroyed 2 | . 1 1 . . Critical Strikes 3 | . 1 1 . 1 Burn 1 | . . . . 1 Destroy 1 | . 1 . . . Smash 1 | . . 1 . . Melee Attacks 6 | . . 5 . 1 Impact 5 | . . 5 . . Slashing . | . . . . . Piercing . | . . . . . Sneak Attacks . | . . . . . Combat Hostiles . | . . . . . Follow-up Attacks . | . . . . . Damage Inflicted 1686 | 23 491 350 181 641 Guns 577 | 23 435 . 68 51 Cannons 554 | . . 279 108 167 Explosions 479 | . 56 . . 423 Melee 71 | . . 71 . . Ramming 5 | . . . 5 . Kinetic 296 | . 163 . 6 127 Thermal 734 | 23 272 279 62 98 Explosive 343 | . . . . 343 Electromagnetic 237 | . 56 . 108 73 Impact 71 | . . 71 . . Slashing . | . . . . . Piercing . | . . . . . Highest Corruption 1 | . 1 1 . . Average Corruption 1 | . 1 1 . . Corruption Purged . | . . . . . Corruption Blocked . | . . . . . Effects 11 | . 4 7 . . Message Errors 2 | . 1 1 . . Matter Fused 3 | . 2 1 . . Energy Discharges 3 | . . 3 . . Data Loss (minor) 1 | . 1 . . . Data Loss (major) 1 | . . 1 . . Alerts 1 | . . 1 . . Overload Shots . | . . . . . Overflow Damage 36 | . . 32 . 4 Projectiles . | . . . . . Explosions 4 | . . . . 4 Melee 32 | . . 32 . . Knockbacks . | . . . . . Impact . | . . . . . Kinetic . | . . . . . Secondary . | . . . . . Self-Inflicted Damage 89 | . 25 . 2 62 Shots 3 | . 1 . . 2 Rammed 3 | . . . 3 . Targets Rammed 3 | . . . 3 . Kicked . | . . . . . Crushed . | . . . . . Highest Temperature 330 | 66 330 294 180 81 Average Temperature 92 | 35 113 112 67 28 Received Heat Transfer 639 | 12 219 54 66 288 Siege Activations . | . . . . . Robots Corrupted 1 | . . 1 . . Combat Hostiles 1 | . . 1 . . Parts Fried . | . . . . . Impact Corruptions 3 | . . 3 . . Robots Melted . | . . . . . Combat Hostiles . | . . . . . Parts Melted 2 | . 1 1 . . Heat Transferred 1747 | 62 660 592 148 285 Parts Sabotaged . | . . . . . Parts Stolen . | . . . . . Parts Stripped . | . . . . . Power Chain Reactions 1 | . . . . 1 Alert | -11 -10 -10 -9 -8 ------- Run | Yrd Mat Min Mat Mat Peak Influence 367 | 20 193 120 336 367 Initial 55 | . 13 32 46 55 Average 113 | 1 81 58 194 178 Maximum Alert Level 1 | . . . 1 1 Low Security (%) 83 | 100 100 100 58 60 Level 1 16 | . . . 41 39 Level 2 . | . . . . . Level 3 . | . . . . . Level 4 . | . . . . . Level 5 . | . . . . . High Security . | . . . . . Max Security . | . . . . . Squads Dispatched 7 | . . . 3 4 Investigation 1 | . . . 1 . Extermination . | . . . . . Reinforcement 6 | . . . 2 4 Assault . | . . . . . Garrison . | . . . . . Intercept . | . . . . . Searches Triggered . | . . . . . Construction Impeded . | . . . . . Haulers Reinforced . | . . . . . Active Scanning Responses . | . . . . . Cargo Convoy Interrupts . | . . . . . Stealth | -11 -10 -10 -9 -8 --------- Run | Yrd Mat Min Mat Mat Distress Signals 1 | . 1 . . . Communications Jammed . | . . . . . Distress Signals . | . . . . . Times Spotted 71 | 1 15 11 18 26 Peak Tracking Total 6 | 1 4 3 5 6 Tactical Retreats 16 | . 4 3 5 4 Traps | -11 -10 -10 -9 -8 ------- Run | Yrd Mat Min Mat Mat Traps Triggered 1 | . 1 . . . Indirectly . | . . . . . Trap Hack Attempts . | . . . . . Triggered . | . . . . . Disarmed . | . . . . . Reprogrammed . | . . . . . Reused . | . . . . . Traps Extracted . | . . . . . Installed . | . . . . . Triggered 1 | . . 1 . . Machines | -11 -10 -10 -9 -8 ---------- Run | Yrd Mat Min Mat Mat Machines Disabled 5 | . 1 . 1 3 Max in Single Turn 1 | . 1 . 1 1 Machines Repaired . | . . . . . Machines Dismantled . | . . . . . Machines Sabotaged . | . . . . . Overloaded Fab Kills . | . . . . . Hacking | -11 -10 -10 -9 -8 --------- Run | Yrd Mat Min Mat Mat Machines Accessed 7 | . 4 . 3 . Terminals 6 | . 3 . 3 . Fabricators . | . . . . . Repair Stations . | . . . . . Recycling Units 1 | . 1 . . . Scanalyzers . | . . . . . Garrison Access . | . . . . . Total Hacks 18 | . 9 . 9 . Successful 8 | . 5 . 3 . Failed 10 | . 4 . 6 . Catastrophic 1 | . . . 1 . Database Lockouts . | . . . . . Manual . | . . . . . Terminals 15 | . 6 . 9 . Fabricators . | . . . . . Repair Stations . | . . . . . Recycling Units 3 | . 3 . . . Scanalyzers . | . . . . . Garrison Access . | . . . . . Terminal Hacks 6 | . 3 . 3 . Record 4 | . 3 . 1 . Alert Level 1 | . . . 1 . Unreport Threat 1 | . . . 1 . Fabricator Hacks . | . . . . . Repair Station Hacks . | . . . . . Recycling Unit Hacks 2 | . 2 . . . Recycle Component 1 | . 1 . . . Process 1 | . 1 . . . Scanalyzer . | . . . . . Garrison Access Hacks . | . . . . . Unauthorized Hacks . | . . . . . Terminals . | . . . . . Fabricators . | . . . . . Repair Stations . | . . . . . Recycling Units . | . . . . . Scanalyzers . | . . . . . Garrison Access . | . . . . . Data Cores Recovered . | . . . . . Used . | . . . . . Hacking Detections 5 | . 2 . 3 . Full Trace Events 2 | . . . 2 . Feedback Events . | . . . . . Feedback Blocked . | . . . . . Robot Schematics Acquired . | . . . . . Robots Built . | . . . . . Authchips . | . . . . . Time . | . . . . . Total Robot Build Rating . | . . . . . Part Schematics Acquired . | . . . . . Parts Built . | . . . . . Authchips . | . . . . . Time . | . . . . . Total Part Build Rating . | . . . . . Parts Repaired . | . . . . . Time . | . . . . . Parts Recycled 1 | . 1 . . . Recycled Matter 369 | . 369 . . . Retrieved Matter . | . . . . . Retrieved Components . | . . . . . Parts Scanalyzed . | . . . . . Part Schematics Acquired . | . . . . . Parts Damaged . | . . . . . Bothacking | -11 -10 -10 -9 -8 ------------ Run | Yrd Mat Min Mat Mat Used RIF Installer . | . . . . . Robots Hacked . | . . . . . Non-combat . | . . . . . Combat . | . . . . . Robot Hacks Applied . | . . . . . Relay Couplers Released . | . . . . . Fabnet Peak Effective % . | . . . . . Robots Rewired . | . . . . . Allies Hacked . | . . . . . Hacks Repelled . | . . . . . Allies | -11 -10 -10 -9 -8 -------- Run | Yrd Mat Min Mat Mat Total Allies . | . . . . . Largest Group . | . . . . . Highest-Rated Group . | . . . . . Highest-Rated Ally . | . . . . . Total Orders . | . . . . . Ally Attacks . | . . . . . Total Damage . | . . . . . Kills . | . . . . . Allies Corrupted . | . . . . . Allies Melted . | . . . . . Intel | -11 -10 -10 -9 -8 ------- Run | Yrd Mat Min Mat Mat Robot Analysis Total . | . . . . . Derelict Logs Recovered 2 | . . 2 . . Drone Launches . | . . . . . Drone Recoveries . | . . . . . Exploration | -11 -10 -10 -9 -8 ------------- Run | Yrd Mat Min Mat Mat Turns Passed 2452 | 155 637 675 676 309 Spaces Moved 3278 | 159 661 767 1184 507 Core 112 | 88 . 5 2 17 Treads . | . . . . . Legs 306 | 71 56 179 . . Wheels 101 | . 101 . . . Hover 924 | . 504 420 . . Flight 1835 | . . 163 1182 490 Fastest Speed 34 | 50 56 40 34 34 Average Speed 53 | 81 70 69 37 34 Slowest Speed 300 | 120 120 300 200 50 Overloaded Moves . | . . . . . Propulsion Burnouts . | . . . . . Robots Hopped 12 | . . . 10 2 Cave-ins Triggered . | . . . . . Exploration Rate (%) 48 | 6 54 95 57 30 Regions Visited 4 Branch Regions 1 Pre-discovered Areas . | . . . . . Known Exits Taken 1 | . . 1 . . Unknown Exits Taken 3 | 1 1 . 1 . Scrap Searched 1 | . . 1 . . Spaces Dug . | . . . . . Terrain Destroyed 24 | . . . . 24 Melee . | . . . . . Projectile 1 | . . . . 1 AOE 23 | . . . . 23 Terrain Rammed . | . . . . . Walls Destroyed . | . . . . . Machines Disabled . | . . . . . Actions | -11 -10 -10 -9 -8 --------- Run | Yrd Mat Min Mat Mat Total 3844 | 183 784 873 1387 617 Wait 288 | . 30 32 171 55 Move 3250 | 158 660 766 1163 503 Hop 12 | . . . 10 2 Pick Up 64 | 8 26 13 5 12 Fast Attach 15 | . . . 6 9 Attach 42 | 10 11 7 7 7 Detach 14 | 5 3 1 4 1 Swap 17 | . 8 6 1 2 Drop 51 | . 20 13 7 11 Fire 82 | 2 26 30 10 14 Melee 6 | . . 5 . 1 Ram 3 | . . . 3 . Kick . | . . . . . Crush . | . . . . . Escape Stasis . | . . . . . Rewire . | . . . . . Trap . | . . . . . Miscellaneous . | . . . . . Route ------- -11/Scrapyard -10/Materials -10/Mines (discovered 2 exits: *Mat x2) -9/Materials (discovered 3 exits: [*Mat x2] / [*Sto]) -8/Materials History --------- Turn | Location | Event 2 | -11/Scrapyard | Met Revision 17 131 | -11/Scrapyard | Discovered new exit (range 8) 156 | -11/Scrapyard | Entered Materials 308 | -10/Materials | Build established: Mutant 543 | -10/Materials | Discovered new exit (range 15) 793 | -10/Materials | Entered Mines 886 | -10/Mines | Joined a pair of Derelicts in attacking an 0b10 outpost 975 | -10/Mines | Found a hidden stash of uninstalled traps 984 | -10/Mines | Learned Materials stockpile data 1042 | -10/Mines | Identified exit to Materials 1098 | -10/Mines | Core integrity fell below 50% 1363 | -10/Mines | Core integrity fell below 20% 1465 | -10/Mines | Discovered exit to Materials (range 6) 1468 | -10/Mines | Entered Materials 1468 | -9/Materials | Evolved 2 slots: Propulsion x1, Utility x1 1815 | -9/Materials | Discovered new exit (range 10) 1955 | -9/Materials | Build established: Scavenger-Mutant 1957 | -9/Materials | Discovered new exit (range 3) 2141 | -9/Materials | Discovered new exit (range 4) 2144 | -9/Materials | Entered another Materials area 2144 | -8/Materials | Evolved 2 slots: Power x1, Utility x1 2431 | -8/Materials | Core integrity fell below 50% 2447 | -8/Materials | Core integrity fell below 20% 2453 | -8/Materials | Destroyed by C-17 Slicer with Blade Saw Last Messages --------------- 02436_ M-13 Machinist repairs C-17 Slicer. 02437_ U-05 Engineer lays Concrete. 02437_ Surge Thruster destroyed. 02437_ Visual Processing Unit destroyed. 02437_ Critical hit (Blast). 02438_ Surge Thruster severed. 02438_ K-01 Serf collects debris. 02438_ U-05 Engineer lays Concrete. 02439_ Acquired Surge Thruster. 02439_ C-17 Slicer destroyed. 02439_ U-05 Engineer lays Concrete. 02440_ U-05 Engineer builds a Wall. 02441_ K-01 Serf collects debris. 02442_ Imp. Targeting Computer severed. 02444_ K-01 Serf collects debris. 02445_ U-05 Engineer lays Concrete. 02446_ Imp. Datajack destroyed. 02446_ U-05 Engineer lays Concrete. 02449_ Targeting Computer severed. 02451_ Material Processor disabled. Map ----- +----------------------------------------------------+ | ?????????????????????????????????????????????????? | | ?????????????????????????????????????????????????? | | ???????????????????????????????????????#######???? | | ???????????????????????????????????????# #???? | | ???????????????????????????????????????# #???? | | ???????????????????????? ??????????????# " #???? | | ????#??????????????????# ??????????????#! #???? | | ??? #??????????????????# ??????????????# #???? | | ??? #??????????????????# ??????????????# #???? | | ?? #??????????????????# #?????????????# ] #???? | | ?? #??????????????????# #?????????????# #???? | | ? #??????????????????# #??????######## #???? | | # #??????????????????# #??????#!!//[[# #???? | | #??????????????????# #????###!!//[[# ##### | | #??????????????????# #???## #% = # "# # | | !! #???????????######## ##### %[/ [ | | ! #########+### t =*= ! %] | | ! % =%=!H=% [ | | "#####"##### # # | | T"# # ## ## / | | "#########/##### " # ##### ####"=%# | | G"# """ """ # ## =########## *# | | " # """ """ # ## #%* ##%!# | | ### """ """ # # # ##*%# | | / # " c # # # =! | | ### # """ @ # # " | | ??# # """ " ! # " # | | ??##########+#### """"" ## ] # # | | #?????????# """ ##! # ## # | | #???????### ## # ## # | | #???????# # ## #######+#### # | | #??# #####+###################### # | | #??# # # / %% | | ???# # # ###???#/########+"""#### | | ???# ?# # !! #?????????# [ """" # | | ???######?##### !! #?????????# """* ""S"" # | | ??????????????# #?????????# """ "" "" # | | ??????????????# #?????????# """ / # | | ??????????????# #?????????# ! # | | ??????????????#############?????????############## | | | | | | | | | | | | | | | | | | | | | +----------------------------------------------------+ Best States ------------- Heat Dissipation 31 Energy Generation 18 Energy Capacity 300 Matter Stores 358 Matter Capacity 450 Sight Range 18 Robot Scan Range 15 Terrain Scan Density 10 Armor Coverage 150 Evasion (%) 63 Targeting Accuracy 11 Defensive Hacking 10 Item Schematics ----------------- None Robot Schematics ------------------ None Fabricated ------------ Nothing Alien Tech Used ----------------- None Achievements -------------- None Challenges ------------ None Game ------ Seed DeuteriumCouplerDetector Manual? 0 Play Time 00:56:25 Cumulative 4.0 hours Start 2025.01.09 @ 11:48:47 End 2025.01.09 @ 12:47:19 Sessions 1 Manual Loads 0 Difficulty Rogue Special Mode None Game No. 3 Rogue 1 Adventurer 2 Explorer 0 Win Type - Total 0 Types 0/0/0/0/0/0/0/0/0 Lore% 2 Gallery% 9 Achievement% 10 Wizard Run 0 Options --------- Layout 1 ASCII 0 Keyboard 0 Movement Arrows Keybinds 0 Fullscreen 1 Font 32/SmallcapsGlow Map View 50x35 Zoom Use 0% Tactical HUD 1 Map Filters NONE Filters NONE Steam 1 RUN: 5fb3f950-55e3-4cf7-afae-4154d227fbf0